bitfinex/quotes_ETHUSD_20250923
["timestamp","ask_amount","ask_price","bid_price","bid_amount"]
[1758646216370,0.001,4191.5,4191.3,2.38589459]
[1758646216562,1.123,4191.4,4191.3,2.38589459]
[1758646216768,0.001,4191.5,4191.4,2.38583766]
[1758646217004,0.001,4191.5,4191.4,5.26167208]
[1758646217197,0.001,4191.5,4191.4,5.23781371]
[1758646217366,0.001,4191.5,4191.4,5.35701371]
[1758646218094,0.001,4191.5,4191.4,19.85701371]
[1758646218701,0.001,4191.5,4191.4,23.94001371]
[1758646227625,0.001,4191.9,4191.5,0.792]
[1758646227789,0.696,4194.4,4193.9,2.38436479]
[1758646227995,0.465,4194.2,4193.9,2.38437297]
[1758646228188,0.465,4194.1,4194.0,16.88435695]
[1758646228690,0.5861,4194.1,4194.0,14.5]
[1758646228904,0.71670711,4194.1,4194.0,14.5]
[1758646229522,0.71670711,4194.1,4194.0,16.8843586]
[1758646229730,0.59560711,4194.1,4194.0,16.8843586]
[1758646230116,0.84107112,4194.4,4194.1,2.38426236]
[1758646230117,0.02397112,4194.4,4194.1,2.38426236]
[1758646230316,0.465,4194.3,4194.2,2.38423098]
[1758646230626,0.465,4194.9,4194.0,14.5]
[1758646230930,3.0,4194.7,4194.4,2.3841285]
[1758646231107,3.0,4194.7,4194.2,4.081]
[1758646231108,0.48897112,4194.7,4194.2,4.081]
[1758646231311,0.48897112,4194.7,4194.1,2.38429994]
[1758646231312,0.14507112,4194.9,4194.1,4.081]
[1758646231612,0.465,4194.6,4194.3,2.38418154]
[1758646231820,0.465,4194.6,4194.2,2.38423016]
[1758646232026,0.465,4194.6,4194.1,4.081]
[1758646232027,0.465,4194.6,4194.1,6.465289]
[1758646232237,0.465,4194.6,4194.1,4.081]
[1758646232538,0.465,4194.6,4194.3,2.38418606]
[1758646232706,0.33847823,4194.8,4194.3,2.38418606]
[1758646232892,0.5861,4194.7,4194.1,4.081]
[1758646233092,0.465,4194.7,4194.2,2.3842028]
[1758646233516,0.465,4194.6,4194.2,2.3842028]
[1758646233913,0.465,4194.6,4194.1,4.081]
[1758646234123,0.02397112,4194.8,4194.3,2.38418668]
[1758646234436,0.48897112,4195.0,4194.4,2.65167144]
[1758646234742,0.02397112,4195.0,4194.4,2.65166433]
[1758646234894,1.41376996,4194.9,4194.2,2.38419431]
[1758646235096,3.02397112,4194.8,4194.2,2.38419431]
[1758646235295,2.40788613,4194.8,4194.5,14.5]
[1758646235496,0.5861,4194.7,4194.5,14.5]
[1758646235696,0.61007112,4194.6,4194.5,14.5]
[1758646235945,1.00435193,4194.6,4194.5,14.5]
[1758646236109,0.88325193,4194.6,4194.5,14.5]
[1758646236292,0.02397112,4194.6,4194.5,14.5]
[1758646236496,3.02497112,4194.8,4194.5,14.5]
[1758646236741,2.87388252,4194.8,4194.5,14.5]
[1758646236898,0.48997112,4194.8,4194.5,14.5]
[1758646237303,2.8738805,4194.8,4194.5,14.5]
[1758646237642,0.69437505,4194.7,4194.5,14.5]
[1758646237840,0.02397112,4194.6,4194.5,14.5]
[1758646239155,0.61007112,4194.6,4194.5,14.5]
[1758646239464,5.87298866,4194.6,4194.5,14.5]
[1758646239622,5.97011754,4194.6,4194.5,14.5]
[1758646239815,6.7554938,4194.6,4194.5,14.5]
[1758646240016,4.37147626,4194.6,4194.5,14.5]
[1758646240233,4.39544738,4194.6,4194.5,14.5]
[1758646240435,4.27434738,4194.6,4194.5,14.5]
[1758646240645,3.80934738,4194.6,4194.5,14.5]
[1758646240844,0.02497112,4194.8,4194.5,14.5]
[1758646241043,0.001,4194.8,4194.7,2.38396071]
[1758646241353,0.001,4194.8,4194.6,2.65453832]
[1758646241511,0.001,4194.8,4194.7,2.38396071]
[1758646241718,0.001,4194.8,4194.7,2.63066071]
[1758646241947,0.001,4194.8,4194.7,0.2467]
[1758646242257,0.001,4194.8,4194.6,2.38401325]
[1758646242757,0.001,4194.8,4194.6,2.38400432]
[1758646242954,0.001,4194.8,4194.7,2.38396071]
[1758646243157,0.001,4194.8,4194.6,2.38398041]
[1758646243463,0.001,4194.8,4194.5,17.13076724]
[1758646243815,0.001,4194.8,4194.5,17.13075497]
[1758646244051,0.001,4194.8,4194.5,14.5]
[1758646244259,0.4533,4194.8,4194.5,14.5]
[1758646244565,0.59737112,4194.7,4194.5,14.5]
[1758646244730,0.4523,4194.6,4194.5,14.5]
[1758646245260,3.02397112,4194.7,4194.5,14.5]
[1758646245557,7.079,4194.6,4194.5,16.88407167]
[1758646245763,7.079,4194.6,4194.5,17.13077167]
[1758646245926,7.079,4194.6,4194.5,14.5]
[1758646246130,8.4456,4194.6,4194.5,14.5]
[1758646247170,8.5667,4194.6,4194.5,14.5]
[1758646247450,11.74271754,4194.6,4194.5,14.5]
[1758646247816,7.9923,4194.6,4194.5,14.5]
[1758646248016,3.9143,4194.6,4194.5,14.5]
[1758646248245,7.9923,4194.6,4194.5,14.5]
[1758646248563,11.74171754,4194.6,4194.5,14.5]
[1758646248718,0.792,4194.4,4193.5,0.2467]
[1758646248913,3.0,4194.2,4193.8,2.38446628]
[1758646249148,3.02397112,4194.2,4193.9,14.9664]
[1758646249377,3.02397112,4194.2,4193.9,14.5]
[1758646249667,0.02397112,4194.2,4194.0,2.3843573]
[1758646249844,4.078,4194.4,4194.1,0.7131]
[1758646250028,3.0,4194.3,4194.2,0.2467]
[1758646250431,3.02397112,4194.3,4194.2,0.2467]
[1758646250614,3.0,4194.3,4194.2,16.8842449]
[1758646250819,3.0,4194.3,4194.2,14.7467]
[1758646251059,3.0,4194.3,4194.2,14.8659]
[1758646251848,3.0,4194.3,4194.2,17.2501449]
[1758646252045,0.001,4194.8,4194.2,17.2501449]
[1758646252359,3.0,4194.4,4194.3,2.38418806]
[1758646252555,3.0,4194.4,4194.2,17.25010302]
[1758646252755,3.0,4194.4,4194.3,2.38418806]
[1758646252961,3.0,4194.4,4194.3,2.63088806]
[1758646253191,3.0,4194.4,4194.3,2.38418806]
[1758646253681,3.02397112,4194.4,4194.2,14.6192]
[1758646253981,0.001,4194.8,4194.3,3.09728806]
[1758646254281,0.001,4194.8,4194.3,6.70579069]
[1758646254467,0.001,4194.8,4194.6,0.1192]
[1758646254655,0.001,4194.8,4194.7,14.5]
[1758646254861,0.001,4194.8,4194.7,17.13066071]
[1758646255382,0.001,4194.8,4194.7,14.5]
[1758646255778,0.001,4194.8,4194.7,17.13066071]
[1758646256144,0.001,4194.8,4194.7,14.7467]
[1758646256350,0.001,4194.8,4194.7,17.59706071]
[1758646257984,0.001,4194.8,4194.7,14.5]
[1758646258950,0.001,4194.8,4194.7,16.88396071]
[1758646259167,0.001,4194.8,4194.7,17.59706071]
[1758646260491,0.001,4194.8,4194.7,17.13066071]
[1758646260703,0.001,4194.8,4194.7,14.7467]
[1758646260909,0.001,4194.8,4194.7,17.13066071]
[1758646261478,0.001,4194.8,4194.7,17.59706071]
[1758646262308,0.001,4194.8,4194.7,19.54849294]
[1758646262513,0.001,4194.8,4194.7,24.09189294]
[1758646264431,0.001,4194.8,4194.7,23.37879294]
[1758646264879,0.001,4194.8,4194.7,19.30179294]
[1758646265084,0.001,4194.8,4194.7,20.96096071]
[1758646265479,0.5744,4194.8,4194.7,14.5]
[1758646265687,5.982275,4194.8,4194.7,14.5]
[1758646266012,5.95830388,4194.8,4194.7,14.5]
[1758646267002,3.001,4194.8,4194.7,14.5]
[1758646267578,5.38490388,4194.8,4194.7,14.5]
[1758646267784,5.83720388,4194.8,4194.7,14.5]
[1758646267985,5.95830388,4194.8,4194.7,14.5]
[1758646269098,8.19851476,4194.8,4194.7,14.5]
[1758646269428,2.38420068,4194.3,4193.6,2.38458492]
[1758646269629,3.0,4194.1,4193.7,2.38452885]
[1758646269931,3.0,4194.1,4193.8,14.5]
[1758646270130,0.02397112,4194.0,4193.8,14.5]
[1758646271432,0.4399,4194.6,4193.8,14.5]
[1758646271632,1.30997112,4194.5,4194.2,2.38423972]
[1758646271832,1.30997112,4194.5,4194.2,2.63073972]
[1758646272132,0.001,4194.8,4194.4,14.5]
[1758646272335,0.001,4194.8,4194.7,2.38396071]
[1758646272830,0.001,4194.8,4194.7,3.12840031]
[1758646273335,0.001,4194.8,4194.7,5.54908778]
[1758646273629,0.001,4194.8,4194.7,17.60456071]
[1758646276850,0.001,4194.8,4194.7,21.68056071]
[1758646277051,0.001,4194.8,4194.7,21.79896071]
[1758646281749,0.001,4194.8,4194.7,17.72296071]
[1758646282252,0.001,4194.8,4194.7,21.79796071]
[1758646282458,0.001,4194.8,4194.7,24.24079831]
[1758646289368,0.001,4194.8,4194.7,28.03279831]
[1758646289573,0.001,4194.8,4194.7,29.18339831]
[1758646292089,0.001,4194.8,4194.7,26.18339831]
[1758646292992,0.001,4194.8,4194.7,26.97539831]
[1758646294271,0.001,4194.8,4194.7,29.97539831]
[1758646295354,0.001,4194.8,4194.7,55.53316425]
[1758646297673,0.001,4195.3,4195.2,3.17567658]
[1758646297994,0.001,4195.3,4195.2,10.57870082]
[1758646298207,0.001,4195.3,4195.2,11.27546406]
[1758646298408,0.001,4195.3,4195.2,25.77546406]
[1758646298808,0.02,4196.9,4196.8,2.38276782]
[1758646299012,0.02,4196.9,4196.8,6.47959549]
[1758646299176,0.02,4196.9,4196.8,7.5482115]
[1758646299372,0.02,4196.9,4196.8,22.0482115]
[1758646299573,0.02,4196.9,4196.8,22.1666115]
[1758646300017,0.02,4196.9,4196.8,18.0936115]
[1758646300189,0.581,4196.9,4196.8,21.07416782]
[1758646300784,0.4599,4196.9,4196.8,21.07416782]
[1758646301418,0.02,4196.9,4196.8,21.07416782]
[1758646306158,0.02,4196.9,4196.8,17.00116782]
[1758646306454,0.02,4196.9,4196.8,21.07216782]
[1758646306662,0.02,4196.9,4196.8,23.19288981]
[1758646306858,0.02,4196.9,4196.8,23.43378981]
[1758646309349,0.02,4196.9,4196.8,23.19288981]
[1758646309561,0.4552,4198.2,4196.8,21.50832199]
[1758646309750,0.4552,4198.2,4198.1,2.38202996]
[1758646309952,2.061,4198.8,4198.1,4.09382029]
[1758646310158,0.02397112,4198.7,4198.5,14.5]
[1758646310472,0.4552,4198.6,4198.5,14.5]
[1758646310649,0.5763,4198.6,4198.5,14.5]
[1758646312255,0.5763,4198.6,4198.5,17.00020302]
[1758646312432,0.5763,4198.6,4198.5,14.6184]
[1758646312637,0.5763,4198.6,4198.5,17.00020302]
[1758646312852,0.5763,4198.6,4198.5,14.6184]
[1758646313052,0.5763,4198.6,4198.5,17.00020302]
[1758646313463,0.5763,4198.6,4198.5,14.6184]
[1758646314352,0.5763,4198.6,4198.5,18.6884]
[1758646315058,0.5763,4198.6,4198.5,14.6184]
[1758646315233,0.5763,4198.6,4198.5,18.6874]
[1758646315555,7.03917436,4198.6,4198.5,14.5]
[1758646315757,8.30962591,4198.6,4198.5,14.5]
[1758646316266,3.5763,4198.6,4198.5,14.5]
[1758646316468,5.95804629,4198.6,4198.5,14.5]
[1758646316627,6.07644629,4198.6,4198.5,14.5]
[1758646319430,3.6947,4198.6,4198.5,14.5]
[1758646320448,0.001,4198.8,4198.5,14.5]
[1758646320647,0.001,4198.8,4198.6,4.09181746]
[1758646320877,0.001,4198.8,4198.6,4.068]
[1758646321073,0.001,4198.8,4198.7,0.02381689]
[1758646321596,0.001,4198.8,4198.7,4.97472815]
[1758646321904,0.001,4198.8,4198.7,4.95091126]
[1758646322084,0.001,4198.8,4198.7,19.45091126]
[1758646322896,1e-08,4199.9,4198.8,0.792]
[1758646323088,1e-08,4199.9,4199.8,2.38106576]
[1758646323414,1e-08,4199.9,4199.8,6.94909745]
[1758646323625,1e-08,4199.9,4199.8,22.1234868]
[1758646325267,1e-08,4199.9,4199.8,22.9154868]
[1758646325697,1e-08,4199.9,4199.8,25.9154868]
[1758646325898,0.02,4201.9,4200.4,0.792]
[1758646326102,0.02,4201.9,4200.6,0.792]
[1758646326401,0.02,4201.9,4201.1,2.38032896]
[1758646326584,0.02,4201.9,4201.8,16.8799324]
[1758646326789,0.02,4201.9,4201.8,23.0079324]
[1758646326978,0.02,4201.9,4201.8,23.7061324]
[1758646327174,0.02,4201.9,4201.8,25.91136416]
[1758646327502,0.02,4201.9,4201.8,25.91036416]
[1758646329191,0.02,4201.9,4201.8,25.90936416]
[1758646330204,0.021,4201.9,4201.8,25.90936416]
[1758646330403,0.021,4201.9,4201.8,19.78336416]
[1758646330617,0.021,4201.9,4201.8,14.5]
[1758646330930,0.021,4201.9,4201.8,20.9449324]
[1758646331090,0.021,4201.9,4201.8,21.6431324]
[1758646331425,0.001,4202.4,4201.9,3.17187577]
[1758646331606,0.001,4202.4,4202.2,2.37970586]
[1758646331783,0.001,4202.4,4202.3,9.07041631]
[1758646331980,0.001,4202.4,4202.3,18.12061982]
[1758646332375,0.001,4202.4,4202.3,24.25061982]
[1758646332581,0.001,4202.4,4202.3,14.5]
[1758646332785,0.001,4202.4,4202.3,16.87964923]
[1758646333109,0.001,4202.4,4202.3,14.6184]
[1758646333520,0.001,4202.4,4202.3,23.12904923]
[1758646334417,0.001,4202.4,4202.3,14.6184]
[1758646334708,0.001,4202.4,4202.3,23.13004923]
[1758646334913,0.4597,4202.4,4202.3,14.5]
[1758646335098,0.5808,4202.4,4202.3,18.573]
[1758646335287,0.001,4202.4,4202.3,18.573]
[1758646335480,0.001,4202.4,4202.3,23.04792437]
[1758646335679,0.001,4202.4,4202.3,23.75092437]
[1758646335949,0.001,4202.4,4202.3,18.97492437]
[1758646336350,0.001,4202.4,4202.3,23.02764923]
[1758646336772,0.001,4202.4,4202.3,23.73064923]
[1758646337269,0.001,4202.4,4202.3,23.25954923]
[1758646337463,0.001,4202.4,4202.3,23.02964923]
[1758646337628,0.001,4202.4,4202.3,23.73264923]
[1758646337958,0.001,4202.4,4202.3,26.17548683]
[1758646338361,0.001,4202.4,4202.3,19.55438683]
[1758646338662,0.001,4202.4,4202.3,25.70438683]
[1758646338849,0.001,4202.4,4202.3,19.55438683]
[1758646339046,0.001,4202.4,4202.3,25.70438683]
[1758646339257,0.001,4202.4,4202.3,25.47248683]
[1758646339458,0.001,4202.4,4202.3,25.47148683]
[1758646339867,0.001,4202.4,4202.3,25.70338683]
[1758646340276,0.001,4202.4,4202.3,19.32248683]
[1758646340579,0.001,4202.4,4202.3,25.47148683]
[1758646340761,0.001,4202.4,4202.3,25.70338683]
[1758646341383,0.001,4202.4,4202.3,26.17448683]
[1758646341755,0.001,4202.4,4202.3,26.96648683]
[1758646342275,0.02,4202.9,4202.3,26.96648683]
[1758646342276,1e-08,4202.9,4202.3,26.96648683]
[1758646342490,1e-08,4202.9,4202.6,0.792]
[1758646342677,1e-08,4202.9,4202.8,0.792]
[1758646342878,1e-08,4202.9,4202.8,15.292]
[1758646343042,1e-08,4202.9,4202.8,19.80436613]
[1758646343247,1e-08,4203.9,4203.0,0.792]
[1758646343445,1e-08,4203.9,4203.8,6.17080013]
[1758646343644,1e-08,4203.9,4203.8,10.26580013]
[1758646343942,1e-08,4203.9,4203.8,25.46880013]
[1758646344664,0.02,4205.9,4204.0,0.792]
[1758646344858,0.02,4205.9,4205.8,2.37766893]
[1758646345058,0.02,4205.9,4205.8,8.88683582]
[1758646345269,22.88122248,4205.9,4201.1,0.2319]
[1758646345481,1.68900842,4204.7,4202.6,0.272]
[1758646345643,0.02397112,4204.6,4202.7,2.55389422]
[1758646345985,0.4587,4204.6,4204.3,14.5]
[1758646346170,0.4587,4204.6,4204.4,2.5777846]
[1758646346370,0.4587,4204.9,4204.4,2.554]
[1758646346576,0.4587,4204.9,4204.4,2.5777846]
[1758646346758,0.4587,4204.9,4204.8,14.5]
[1758646346943,0.4587,4205.2,4204.8,18.871]
[1758646347167,0.4587,4205.1,4204.9,6.45178177]
[1758646347366,0.4587,4205.0,4204.9,6.428]
[1758646347571,0.59236593,4205.0,4204.9,6.428]
[1758646347819,0.59236593,4205.0,4204.9,20.928]
[1758646347994,0.04397112,4205.9,4204.9,20.928]
[1758646348173,0.02,4205.9,4205.0,0.02378121]
[1758646348801,2.37796097,4205.3,4205.1,0.374]
[1758646349189,2.37796097,4205.3,4205.2,14.5]
[1758646349391,2.4428376,4205.3,4205.2,14.5]
[1758646350521,4.82078923,4205.3,4205.2,14.5]
[1758646350685,2.7509376,4205.3,4205.2,18.861]
[1758646351001,2.4428376,4205.3,4205.2,18.861]
[1758646351388,5.12888923,4205.3,4205.2,14.5]
[1758646351592,2.7509376,4205.3,4205.2,18.863]
[1758646351792,2.4428376,4205.3,4205.2,18.863]
[1758646352573,0.001,4205.6,4205.2,18.863]
[1758646352770,0.001,4205.6,4205.3,0.02377951]
[1758646352970,0.02,4205.9,4205.5,2.37783854]
[1758646353210,0.02,4206.9,4206.1,0.1]
[1758646353699,0.02,4207.9,4206.4,0.792]
[1758646353882,0.02,4207.9,4207.8,2.3765388]
[1758646354083,0.02,4207.9,4207.8,16.558]
[1758646354273,0.02,4207.9,4207.8,18.9345388]
[1758646354475,0.02,4207.9,4207.8,23.3055388]
[1758646355111,0.02,4207.9,4207.8,23.5374388]
[1758646355284,0.02,4207.9,4207.8,19.7559388]
[1758646355487,0.02,4207.9,4207.8,26.33819535]
[1758646355713,1e-08,4207.9,4207.8,26.33619535]
[1758646355904,1e-08,4207.9,4207.8,27.13019535]
[1758646356103,1e-08,4207.9,4207.8,21.96919535]
[1758646356419,1e-08,4207.9,4207.8,27.13219535]
[1758646356616,1e-08,4208.9,4207.9,3.16848233]
[1758646356814,0.02,4209.9,4208.2,2.37631291]
[1758646356976,0.02,4209.9,4208.1,0.792]
[1758646357179,0.02,4209.9,4209.8,16.87540975]
[1758646357395,0.02,4209.9,4209.8,21.48330975]
[1758646357594,0.02,4209.9,4209.8,24.01140975]
[1758646358190,0.02,4209.9,4209.8,21.95240975]
[1758646358449,0.02,4209.9,4209.8,24.00940975]
[1758646358782,0.02,4209.9,4209.8,21.94940975]
[1758646358988,0.02,4209.9,4209.8,24.00640975]
[1758646359302,0.02,4209.9,4209.8,18.87]
[1758646360113,0.02,4209.9,4209.8,21.94840975]
[1758646360314,0.02,4209.9,4209.8,24.38080159]
[1758646361195,0.02,4209.9,4209.8,20.01080159]
[1758646361389,0.02,4209.9,4209.8,26.43480159]
[1758646361987,0.02,4209.9,4209.8,14.5]
[1758646362401,2.70445333,4209.9,4209.8,14.5]
[1758646362640,0.3291,4209.9,4209.8,14.5]
[1758646362803,0.02,4209.9,4209.8,14.5]
[1758646363223,5.70445333,4209.9,4209.8,14.5]
[1758646363422,3.0,4209.8,4207.8,2.3765388]
[1758646363610,3.0,4209.6,4208.2,2.37630581]
[1758646363812,2.4638376,4209.9,4208.3,6.77297506]
[1758646364100,2.37546618,4209.7,4206.1,2.39747264]
[1758646364321,2.37546618,4209.7,4207.6,2.37660638]
[1758646364322,3.02397112,4209.6,4207.6,2.37660638]
[1758646364510,3.0,4209.4,4208.8,14.5]
[1758646364710,20.91337198,4208.9,4208.8,14.5]
[1758646364915,23.65148967,4208.9,4208.8,14.5]
[1758646365133,26.09432727,4208.9,4208.8,14.5]
[1758646365333,2.4428376,4208.9,4208.8,14.5]
[1758646365537,0.001,4209.3,4208.8,14.5]
[1758646365710,0.3612,4209.2,4208.9,0.02375917]
[1758646369104,0.3612,4209.8,4209.7,0.1184]
[1758646369327,0.02,4209.9,4209.7,14.6184]
[1758646369707,0.02,4209.9,4209.8,0.14215409]
[1758646369904,0.02,4209.9,4209.8,2.49380975]
[1758646370117,0.02,4209.9,4209.8,2.61400975]
[1758646370317,0.02,4209.9,4209.8,16.87540975]
[1758646370837,0.02,4209.9,4209.8,17.11400975]
[1758646371203,0.02,4209.9,4209.8,17.58140975]
[1758646371940,0.02,4209.9,4209.8,21.94140975]
[1758646376911,0.02,4209.9,4209.8,14.5]
[1758646377421,5.75755333,4209.9,4209.8,14.5]
[1758646378349,12.15855333,4209.9,4209.8,14.5]
[1758646378510,10.10155333,4209.9,4209.8,14.5]
[1758646378719,4.23565533,4209.9,4209.8,14.5]
[1758646379266,3.02,4209.9,4209.8,14.5]
[1758646380151,3.02,4209.9,4209.8,14.6184]
[1758646380363,0.02,4209.9,4209.8,14.6184]
[1758646380515,0.02,4209.9,4209.8,16.99380975]
[1758646381029,0.02,4209.9,4209.8,21.33380975]
[1758646381409,0.02,4209.9,4209.8,21.57240975]
[1758646381744,0.02,4209.9,4209.8,21.45400975]
[1758646381946,0.02,4209.9,4209.8,21.33380975]
[1758646382347,0.02,4209.9,4209.8,18.9584]
[1758646382646,0.02,4209.9,4209.8,21.33380975]
[1758646382847,0.02,4209.9,4209.8,18.9584]
[1758646383036,0.02,4209.9,4209.8,14.5]
[1758646383037,5.75755333,4209.9,4209.8,14.5]
[1758646383221,6.57083312,4209.9,4209.8,14.5]
[1758646383423,4.19547979,4209.9,4209.8,14.5]
[1758646383628,6.57083312,4209.9,4209.8,14.5]
[1758646383824,6.57083312,4209.9,4208.5,4.334]
[1758646383825,2.37558826,4209.5,4208.5,4.334]
[1758646384129,2.37558826,4209.5,4207.9,0.2386]
[1758646384130,0.02397112,4209.4,4208.6,2.39983742]
[1758646384350,3.0,4209.2,4208.7,18.832]
[1758646384553,0.02,4209.9,4208.8,0.706]
[1758646384846,3.0,4209.8,4208.9,4.332]
[1758646385051,3.02397112,4209.8,4208.9,4.332]
[1758646385248,3.02397112,4209.8,4208.9,6.70787444]
[1758646385249,5.39938981,4209.8,4208.9,6.70787444]
[1758646385414,0.02,4209.9,4209.0,0.26235861]
[1758646385613,0.02,4209.9,4209.1,4.7984]
[1758646385851,0.02,4209.9,4209.2,2.37570952]
[1758646386053,0.02,4209.9,4209.7,14.5]
[1758646386947,5.73760975,4209.8,4209.7,14.5]
[1758646387119,2.37557904,4209.5,4207.9,0.2386]
[1758646387317,1.17788789,4209.8,4207.6,2.055]
[1758646387318,0.02397112,4209.4,4207.6,2.055]
[1758646387516,0.81568789,4209.8,4208.8,2.37594075]
[1758646387517,0.44297112,4209.7,4208.8,2.37594075]
[1758646387716,3.0,4209.6,4208.9,0.02375917]
[1758646388016,2.37563548,4209.4,4207.4,2.6153405]
[1758646388218,2.3760192,4208.8,4207.7,2.37654554]
[1758646388417,2.3760192,4208.8,4208.3,14.5]
[1758646388418,3.0,4208.8,4208.3,14.5]
[1758646388626,3.0,4208.9,4208.4,0.02376199]
[1758646388830,3.0,4208.9,4208.0,4.33]
[1758646389126,3.0,4208.9,4207.4,2.92472427]
[1758646389127,3.0,4208.7,4208.1,0.02376369]
[1758646389327,3.0,4208.7,4207.4,0.54796362]
[1758646389328,2.37608705,4208.6,4208.5,14.5]
[1758646389545,0.32646823,4208.7,4208.5,14.5]
[1758646389735,0.30249711,4208.7,4208.5,14.5]
[1758646389941,9.40797112,4209.2,4208.5,14.5]
[1758646390264,3.001,4209.4,4208.5,14.5]
[1758646390471,4.329,4209.1,4208.5,14.5]
[1758646390637,0.02397112,4209.0,4208.5,14.5]
[1758646390953,3.0,4208.9,4208.5,14.5]
[1758646391117,0.021,4209.9,4209.0,2.37584388]
[1758646391320,2.055,4209.7,4209.1,0.02375804]
[1758646391521,2.055,4209.7,4208.5,0.6989]
[1758646391522,3.0,4209.6,4208.5,0.2276]
[1758646391750,0.02397112,4209.5,4208.3,6.70321258]
[1758646391955,2.39956098,4209.5,4209.2,14.5]
[1758646392154,0.02397112,4209.5,4209.2,14.5]
[1758646393263,2.055,4209.6,4209.2,14.5]
[1758646393476,2.055,4209.6,4209.3,0.02375691]
[1758646393782,3.001,4209.8,4209.3,0.02375691]
[1758646393943,3.97671112,4209.8,4209.2,14.6184]
[1758646394142,0.001,4209.8,4209.3,0.02375691]
[1758646394340,0.001,4209.8,4209.7,2.37546618]
[1758646394750,0.001,4209.8,4209.7,3.07176618]
[1758646394947,0.001,4209.8,4209.7,17.57176618]
[1758646395666,0.001,4209.8,4209.7,17.12346618]
[1758646395873,0.001,4209.8,4209.7,17.57176618]
[1758646396379,0.001,4209.8,4209.7,17.12346618]
[1758646396581,0.001,4209.8,4209.7,16.87546618]
[1758646396785,0.001,4209.8,4209.7,17.57176618]
[1758646397577,0.001,4209.8,4209.7,17.12346618]
[1758646398077,0.001,4209.8,4209.7,14.5]
[1758646398957,0.001,4209.8,4209.7,16.87546618]
[1758646399164,0.001,4209.8,4209.7,17.12346618]
[1758646399481,0.001,4209.8,4209.7,14.5]
[1758646400548,5.61844001,4209.8,4209.7,14.5]
[1758646400749,12.36364001,4209.8,4209.7,14.5]
[1758646401060,12.36364001,4209.8,4208.1,4.327]
[1758646401061,0.792,4209.6,4208.1,4.327]
[1758646401245,3.0,4209.7,4208.2,0.02376312]
[1758646401246,2.37591138,4209.0,4208.2,0.02376312]
[1758646401596,3.0,4208.8,4208.6,14.5]
[1758646401763,2.3760306,4208.7,4208.6,14.5]
[1758646402292,7.17559184,4208.7,4208.6,14.5]
[1758646402473,7.15162072,4208.7,4208.6,14.5]
[1758646402676,3.0,4208.6,4207.1,0.02]
[1758646402875,2.37657924,4207.8,4207.1,0.02]
[1758646403077,4.324,4207.8,4207.1,0.02]
[1758646403389,6.72451199,4207.8,4207.6,14.5]
[1758646403591,6.83802764,4213.3,4207.6,14.5]
[1758646403592,1.41339012,4208.7,4207.6,14.5]
[1758646403889,3.0,4208.3,4207.6,14.5]
[1758646404091,0.02397112,4208.2,4207.6,14.5]
[1758646404394,3.0,4208.0,4207.6,14.5]
[1758646404779,2.37649324,4207.9,4207.6,14.6184]
[1758646404955,2.37659528,4207.7,4207.6,14.6184]
[1758646405153,2.37649639,4207.9,4207.6,14.6184]
[1758646405384,3.02397112,4207.8,4207.6,14.6184]
[1758646405688,2.37659528,4207.7,4207.6,14.5]
[1758646405888,3.0,4207.8,4207.6,14.5]
[1758646406094,0.02397112,4207.7,4207.6,14.5]
[1758646406598,1.41308129,4207.9,4207.6,14.5]
[1758646406884,7.318,4207.7,4207.6,14.5]
[1758646407061,3.0,4207.7,4207.6,14.5]
[1758646407584,3.0,4207.7,4207.6,14.504]
[1758646407955,3.0,4207.7,4207.6,16.99905177]
[1758646408457,0.24303026,4209.8,4208.7,2.3760306]
[1758646408775,6.39497112,4209.7,4208.5,0.248]
[1758646408974,2.37552261,4209.6,4208.6,0.02376087]
[1758646409162,2.3757099,4209.3,4208.8,14.5]
[1758646409363,3.0,4209.1,4208.8,14.5]
[1758646409683,4.313,4209.0,4208.8,14.5]
[1758646409882,3.0,4208.9,4208.8,14.5]
[1758646411052,3.0,4209.7,4208.8,17.12397096]
[1758646411250,2.056,4209.4,4208.9,0.02375917]
[1758646411790,3.0,4209.2,4208.8,14.5]
[1758646412014,0.53964197,4209.6,4208.9,0.72005917]
[1758646412155,0.53964197,4209.6,4209.2,2.37570836]
[1758646412350,4.306,4209.5,4209.3,0.27175691]
[1758646412561,0.001,4209.8,4209.3,0.02375691]
[1758646412775,4.305,4209.7,4209.4,0.248]
[1758646412991,3.0,4209.6,4209.5,2.39930771]
[1758646413307,0.001,4209.8,4209.7,2.37546618]
[1758646413464,0.001,4209.8,4209.7,2.39922084]
[1758646413654,0.001,4209.8,4209.7,3.09552084]
[1758646414388,0.001,4209.8,4209.7,3.07176618]
[1758646414586,0.001,4209.8,4209.7,17.59552084]
[1758646414754,0.001,4209.8,4209.7,17.57176618]
[1758646415456,0.001,4209.8,4209.7,19.99670063]
[1758646415754,2.74655882,4212.1,4209.7,19.99670063]
[1758646415755,1e-08,4211.9,4209.8,0.792]
[1758646415951,1e-08,4211.9,4209.7,47.84417446]
[1758646415952,2.056,4214.4,4211.4,0.792]
[1758646416165,2.056,4214.4,4211.7,2.37433815]
[1758646416383,2.056,4214.4,4213.4,2.37336027]
[1758646416384,0.12424269,4213.8,4213.4,2.37336027]